bitfinex-derivatives/quotes_SOLF0:USTF0_20251002
["timestamp","ask_amount","ask_price","bid_price","bid_amount"]
[1759429264567,7.2,230.78,230.71,3.8988]
[1759429265066,7.2,230.78,230.71,3.92790611]
[1759429265266,7.2,230.78,230.73,3.8984]
[1759429265970,7.2,230.79,230.71,0.02910611]
[1759429266172,7.2,230.84,230.72,7.28]
[1759429267668,7.2,230.84,230.76,0.03094297]
[1759429270170,7.2,230.84,230.76,7.31094297]
[1759429271372,7.2,230.84,230.77,3.8978]
[1759429273771,7.2,230.84,230.76,7.31094297]
[1759429273966,7.2,230.84,230.76,0.03094297]
[1759429274371,10.32584775,230.84,230.76,0.03094297]
[1759429274574,7.2,230.84,230.76,0.03094297]
[1759429275075,328.50183764,230.86,230.76,0.03094297]
[1759429275076,7.2,230.82,230.76,0.03094297]
[1759429277669,7.2,230.85,230.76,0.03094297]
[1759429278575,3.8966,230.84,230.76,0.03094297]
[1759429278775,7.2,230.83,230.76,0.03094297]
[1759429283673,7.2,230.83,230.77,3.8976]
[1759429284080,7.2,230.83,230.76,0.03094297]
[1759429284981,11.0969,230.83,230.76,0.03094297]
[1759429286478,4.88013324,230.92,230.78,60.6299]
[1759429286783,7.39,230.91,230.82,7.11]
[1759429287877,12.88691489,230.91,230.79,2.79338866]
[1759429288083,7.39,230.9,230.79,2.79338866]
[1759429288381,7.39,230.9,230.84,0.03032151]
[1759429288980,3.8959,230.88,230.84,0.03032151]
[1759429289478,7.39,230.87,230.84,0.03032151]
[1759429290078,3.8959,230.88,230.84,0.03032151]
[1759429290586,7.39,230.87,230.84,0.03032151]
[1759429290789,3.8959,230.88,230.84,0.03032151]
[1759429290992,7.39,230.87,230.84,0.03032151]
[1759429291181,3.8959,230.88,230.84,0.03032151]
[1759429291382,7.39,230.87,230.84,0.03032151]
[1759429291691,3.8959,230.88,230.84,0.03032151]
[1759429292182,7.39,230.87,230.84,0.03032151]
[1759429292689,3.8959,230.88,230.84,0.03032151]
[1759429292890,7.39,230.87,230.84,0.03032151]
[1759429293185,3.8959,230.88,230.84,0.03032151]
[1759429294089,7.39,230.85,230.84,0.03032151]
[1759429298286,7.39,230.9,230.84,0.03032151]
[1759429298487,7.39,230.88,230.84,0.03032151]
[1759429298690,7.39,230.87,230.84,0.03032151]
[1759429299287,7.39,230.89,230.84,0.03032151]
[1759429299483,7.39,230.9,230.84,0.03032151]
[1759429299688,11.2856,230.9,230.84,0.03032151]
[1759429300590,7.39,230.88,230.84,0.03032151]
[1759429300790,7.39,230.89,230.84,0.03032151]
[1759429300985,7.39,230.9,230.84,0.03032151]
[1759429301187,7.39,230.88,230.84,0.03032151]
[1759429301390,7.39,230.9,230.84,0.03032151]
[1759429301690,7.39,230.87,230.84,0.03032151]
[1759429301989,15.56770439,230.91,230.84,0.03032151]
[1759429301990,7.39,230.9,230.84,0.03032151]
[1759429303592,7.39,230.9,230.84,7.32032151]
[1759429304793,7.39,230.9,230.84,11.21672151]
[1759429305294,7.39,230.9,230.84,0.03032151]
[1759429305596,20.16322927,230.9,230.84,0.03032151]
[1759429305793,7.39,230.9,230.84,0.03032151]
[1759429306195,7.39,230.85,230.84,0.03032151]
[1759429311701,10.52481177,230.85,230.84,0.03032151]
[1759429311900,7.39,230.85,230.84,0.03032151]
[1759429312796,12.79304837,230.9,230.84,0.03032151]
[1759429312998,3.13464481,230.89,230.84,0.03032151]
[1759429313197,3.13467037,230.88,230.84,0.03032151]
[1759429313403,7.39,230.87,230.84,0.03032151]
[1759429314107,3.8956,230.9,230.84,0.03032151]
[1759429314398,3.13473795,230.89,230.84,0.03032151]
[1759429314706,7.39,230.87,230.84,0.03032151]
[1759429315197,7.39,230.89,230.84,0.03032151]
[1759429315394,3.8959,230.89,230.84,0.03032151]
[1759429315601,7.39,230.88,230.84,0.03032151]
[1759429315806,12.80234466,230.9,230.84,0.03032151]
[1759429316001,3.13482694,230.89,230.84,0.03032151]
[1759429316199,7.39,230.9,230.84,0.03032151]
[1759429316401,3.896,230.88,230.84,0.03032151]
[1759429316901,7.39,230.87,230.84,0.03032151]
[1759429317107,3.896,230.88,230.84,0.03032151]
[1759429317300,7.39,230.87,230.84,0.03032151]
[1759429317700,3.896,230.88,230.84,0.03032151]
[1759429318302,7.39,230.87,230.84,0.03032151]
[1759429318501,3.896,230.88,230.84,0.03032151]
[1759429318702,7.39,230.87,230.84,0.03032151]
[1759429318902,108.46,230.91,230.84,0.03032151]
[1759429318903,7.39,230.9,230.84,0.03032151]
[1759429319207,10.52481566,230.89,230.84,7.32032151]
[1759429319406,7.39,230.89,230.84,7.32032151]
[1759429321703,13.16863699,230.91,230.85,3.8962]
[1759429322008,7.17481135,230.92,230.85,3.8962]
[1759429322309,10.46511045,230.91,230.86,11.2261]
[1759429322498,7.33,230.91,230.87,7.33]
[1759429322906,23.85534517,230.92,230.84,5.71330298]
[1759429323210,3.13497952,230.91,230.84,5.71330298]
[1759429323409,10.60941135,230.92,230.85,3.8963]
[1759429323597,10.60941135,230.92,230.84,1.81680298]
[1759429324101,10.60941135,230.92,230.86,3.8961]
[1759429324406,10.60941135,230.92,230.84,1.81680298]
[1759429324606,10.60941135,230.92,230.84,5.71330298]
[1759429325407,14.50471135,230.92,230.85,3.8964]
[1759429326404,11.2253,230.92,230.85,3.8964]
[1759429326708,3.13513286,230.91,230.85,3.8964]
[1759429326909,11.2253,230.92,230.85,3.8964]
[1759429327109,3.1352194,230.91,230.85,3.8964]
[1759429327305,11.2253,230.92,230.85,3.8964]
[1759429331711,7.33,230.92,230.85,3.8964]
[1759429331905,7.33,230.92,230.86,3.8963]
[1759429332811,7.33,230.92,230.84,3.92692151]
[1759429333113,7.33,230.92,230.84,5.71340298]
[1759429333508,7.33,230.9,230.84,5.71340298]
[1759429334103,7.33,230.9,230.84,0.03032151]
[1759429334306,3.13682005,230.89,230.84,0.03032151]
[1759429334511,7.33,230.87,230.84,0.03032151]
[1759429334710,7.33,230.88,230.84,0.03032151]
[1759429334910,7.33,230.86,230.84,0.03032151]
[1759429335110,7.33,230.88,230.84,0.03032151]
[1759429335311,3.13717001,230.87,230.84,0.03032151]
[1759429335507,7.33,230.88,230.84,0.03032151]
[1759429336007,5.68238147,230.89,230.84,0.03032151]
[1759429336217,7.33,230.87,230.84,0.03032151]
[1759429336515,7.33,230.88,230.84,0.03032151]
[1759429336712,5.68238147,230.89,230.84,0.03032151]
[1759429336912,7.03348795,230.88,230.84,0.03032151]
[1759429337115,7.33,230.85,230.84,0.03032151]
[1759429337315,10.46728795,230.85,230.74,9.66251147]
[1759429337514,3.13728795,230.84,230.74,9.66251147]
[1759429337716,7.33,230.85,230.74,9.66251147]
[1759429337918,3.13753204,230.84,230.74,9.66251147]
[1759429338118,7.33,230.85,230.74,9.66251147]
[1759429338321,3.13749007,230.84,230.75,7.33]
[1759429338521,7.33,230.85,230.75,7.33]
[1759429338818,0.0283364,230.82,230.8,3.8973]
[1759429339120,0.0283364,230.82,230.81,7.33]
[1759429342221,0.0283364,230.82,230.8,1.78648147]
[1759429342425,0.0283364,230.82,230.78,3.8977]
[1759429342426,7.3583364,230.82,230.78,11.2277]
[1759429342624,7.3583364,230.82,230.78,7.33]
[1759429343928,7.3583364,230.82,230.74,2.33251147]
[1759429344230,7.3583364,230.82,230.75,7.3]
[1759429345031,7.3583364,230.82,230.76,3.8979]
[1759429345428,7.3583364,230.82,230.75,9.08648147]
[1759429346325,7.3583364,230.82,230.75,12.98458147]
[1759429347430,0.0283364,230.82,230.78,1.78648147]
[1759429347626,0.0283364,230.82,230.79,7.3]
[1759429348032,0.0283364,230.82,230.8,7.3]
[1759429349223,0.0283364,230.82,230.81,11.1972]
[1759429349429,0.0283364,230.82,230.81,12.98368147]
[1759429349725,7.47,230.9,230.83,3.8967]
[1759429349932,3.13702892,230.89,230.83,3.8967]
[1759429350130,7.47,230.9,230.83,3.8967]
[1759429350331,3.13701079,230.89,230.83,3.8967]
[1759429350534,7.47,230.9,230.83,3.8967]
[1759429350734,3.13708892,230.89,230.83,3.8967]
[1759429350929,7.47,230.9,230.84,3.8966]
[1759429351234,3.13708758,230.89,230.85,7.3]
[1759429351535,7.47,230.9,230.85,7.3]
[1759429351928,11.2457,230.91,230.82,3.897]
[1759429352131,3.13706792,230.9,230.82,3.897]
[1759429352429,11.2457,230.91,230.82,3.897]
[1759429352630,3.13718137,230.9,230.82,3.897]
[1759429352830,3.13718137,230.89,230.84,0.02923203]
[1759429353032,7.35,230.88,230.84,0.02923203]
[1759429353430,7.35,230.89,230.84,0.02923203]
[1759429353634,3.8958,230.9,230.84,0.02923203]
[1759429353835,7.35,230.88,230.84,0.02923203]
[1759429354028,11.2458,230.9,230.84,0.02923203]
[1759429354233,10.48730708,230.89,230.84,7.72923203]
[1759429354538,11.2458,230.9,230.84,7.72923203]
[1759429354834,7.35,230.88,230.84,7.72923203]
[1759429355536,7.35,230.88,230.84,11.62583203]
[1759429355836,7.35,230.9,230.84,0.02923203]
[1759429356034,7.35,230.88,230.84,0.02923203]
[1759429356228,7.35,230.9,230.84,0.02923203]
[1759429356434,7.35,230.88,230.84,0.02923203]
[1759429356635,7.35,230.9,230.84,0.02923203]
[1759429356831,3.13751237,230.89,230.84,0.02923203]
[1759429357036,7.35,230.9,230.84,0.02923203]
[1759429357239,7.35,230.88,230.84,0.02923203]
[1759429359227,1.78648147,230.91,230.84,0.02923203]
[1759429359431,7.32019986,231.01,230.87,1.78648147]
[1759429359638,7.35,230.96,230.84,7.72923203]
[1759429359936,7.35,230.94,230.85,1.78648147]
[1759429360334,7.35,230.94,230.88,3.896]
[1759429360532,7.35,230.94,230.88,7.7]
[1759429360732,7.35,230.94,230.88,9.48648147]
[1759429361436,7.35,231.01,230.92,3.8954]
[1759429361628,3.13568326,231.0,230.92,3.8954]
[1759429361827,3.13568326,230.99,230.92,3.8954]
[1759429362030,3.13568326,230.98,230.94,0.02838457]
[1759429362233,3.13568326,230.97,230.94,0.02838457]
[1759429362434,3.13568326,230.96,230.94,0.02838457]
[1759429362636,7.35,231.0,230.94,0.02838457]
[1759429362829,7.35,230.98,230.94,0.02838457]
[1759429363035,10.48484863,230.97,230.94,0.02838457]
[1759429363238,7.35,230.97,230.94,0.02838457]
[1759429363438,1.78648147,231.0,230.94,0.02838457]
[1759429363634,3.13389749,230.99,230.94,0.02838457]
[1759429363839,7.35,230.97,230.94,0.02838457]
[1759429364033,3.13389749,230.98,230.94,0.02838457]
[1759429364034,7.35,230.98,230.94,0.02838457]
[1759429364230,7.35,230.96,230.94,0.02838457]
[1759429364441,1.78648147,231.0,230.94,0.02838457]
[1759429364629,7.35,230.98,230.94,0.02838457]
[1759429364835,7.35,230.99,230.94,0.02838457]
[1759429365031,3.13304169,230.98,230.94,0.02838457]
[1759429365237,1.78648147,231.0,230.94,0.02838457]
[1759429365436,7.35,230.98,230.94,0.02838457]
[1759429365741,1.78648147,231.0,230.94,0.02838457]
[1759429365942,7.35,230.98,230.94,0.02838457]
[1759429366141,1.78648147,231.0,230.94,0.02838457]
[1759429366342,3.13239024,230.99,230.94,0.02838457]
[1759429366538,1.78648147,231.0,230.94,0.02838457]
[1759429366844,7.35,230.98,230.94,0.02838457]
[1759429367043,1.78648147,231.0,230.94,0.02838457]
[1759429367243,7.35,230.98,230.94,0.02838457]
[1759429367444,7.35,230.99,230.94,0.02838457]
[1759429367843,1.78648147,231.0,230.94,0.02838457]
[1759429368036,3.12740602,230.99,230.94,0.02838457]
[1759429368238,1.78648147,231.0,230.94,0.02838457]
[1759429368438,3.12676674,230.99,230.94,0.02838457]
[1759429368737,7.35,230.99,230.94,0.02838457]
[1759429368942,5.68068147,231.0,230.94,0.02838457]
[1759429369242,12.87484835,231.01,230.94,0.02838457]
[1759429369243,12.87484835,231.01,230.95,7.7]
[1759429369441,9.13648147,231.02,230.94,0.02838457]
[1759429369442,10.47579926,231.0,230.94,0.02838457]
[1759429369640,7.35,231.0,230.94,0.02838457]
[1759429370044,4.91235513,230.99,230.94,0.02838457]
[1759429370244,7.35,230.98,230.94,0.02838457]
[1759429370445,1.78648147,230.99,230.94,0.02838457]
[1759429370640,7.35,230.98,230.94,0.02838457]
[1759429371047,1.78648147,230.99,230.94,0.02838457]
[1759429371340,7.35,230.98,230.94,0.02838457]
[1759429371738,5.68068147,230.99,230.94,0.02838457]
[1759429371943,7.35,230.98,230.94,0.02838457]
[1759429372141,5.68068147,230.99,230.94,0.02838457]
[1759429372338,7.35,230.98,230.94,0.02838457]
[1759429373044,1.78648147,230.99,230.94,0.02838457]
[1759429373244,7.35,230.98,230.94,0.02838457]
[1759429373446,1.78648147,230.99,230.94,0.02838457]
[1759429373642,7.35,230.98,230.94,0.02838457]
[1759429374545,1.78648147,230.99,230.94,0.02838457]
[1759429374946,13.05188778,231.01,230.94,0.02838457]
[1759429375152,7.35,231.0,230.94,0.02838457]
[1759429375850,11.2442,231.0,230.94,0.02838457]
[1759429376050,7.35,231.0,230.94,0.02838457]
[1759429376250,3.8945,230.98,230.94,0.02838457]
[1759429376445,7.35,230.97,230.94,0.02838457]
[1759429376854,3.8945,230.98,230.94,0.02838457]
[1759429377758,7.35,230.97,230.94,0.02838457]
[1759429378053,3.8945,230.98,230.94,0.02838457]
[1759429378852,7.35,230.97,230.94,0.02838457]
[1759429379257,3.8945,230.98,230.94,0.02838457]
[1759429379750,7.35,230.97,230.94,0.02838457]
[1759429380052,1.78648147,230.99,230.94,0.02838457]
[1759429380353,7.35,230.98,230.94,0.02838457]
[1759429380849,1.78648147,230.97,230.94,0.02838457]
[1759429381054,7.35,230.95,230.94,0.02838457]
[1759429381955,7.34,231.03,230.95,7.67]
[1759429384056,7.34,231.03,230.96,3.8947]
[1759429384358,7.34,231.08,231.01,7.67]
[1759429385347,7.34,231.08,231.01,11.5637]
[1759429386053,7.34,231.08,231.01,7.67]
[1759429386259,7.34,231.08,231.02,0.02790329]
[1759429387258,11.2327,231.08,231.02,0.02790329]
[1759429388654,7.34,231.08,231.02,0.02790329]
[1759429392561,11.2327,231.08,231.02,0.02790329]
[1759429394263,7.34,231.08,231.02,0.02790329]
[1759429396664,11.2327,231.08,231.02,0.02790329]
[1759429397061,12.99435928,231.1,231.02,0.02790329]
[1759429397265,7.34,231.05,231.02,0.02790329]
[1759429397467,7.34,231.05,230.91,7.67]
[1759429397769,7.34,231.03,230.91,7.67]
[1759429398264,7.34,230.99,230.89,2.78820651]
[1759429398862,7.34,230.99,230.87,7.67]
[1759429398863,0.03206764,230.96,230.87,7.67]
[1759429399064,7.37206764,230.96,230.87,7.67]
[1759429399466,7.37206764,230.96,230.89,3.8957]
[1759429400860,7.37206764,230.96,230.87,7.67]
[1759429401162,3.8952,230.93,230.83,7.67]
[1759429401361,7.34,230.95,230.83,2.78820651]
[1759429401566,7.34,230.95,230.85,7.67]
[1759429402365,0.0321252,230.92,230.85,7.67]
[1759429402567,0.0321252,230.92,230.86,3.8964]
[1759429402767,0.0321252,230.92,230.85,7.67]
[1759429403265,0.0321252,230.92,230.88,7.67]
[1759429403669,0.0321252,230.92,230.85,7.67]
[1759429403965,0.0321252,230.92,230.84,2.78820651]
[1759429403966,0.0321252,230.92,230.9,7.5]
[1759429404167,0.0321252,230.92,230.87,60.6086]
[1759429404363,0.0321252,230.92,230.88,7.5]
[1759429404571,0.0321252,230.92,230.89,7.5]
[1759429404960,0.0321252,230.92,230.91,7.5]
[1759429405166,7.14,231.04,230.91,7.5]
[1759429405470,7.14,231.04,230.95,7.5]
[1759429406073,7.14,231.04,230.96,3.8947]
[1759429406573,7.14,231.04,230.97,0.02885015]
[1759429406971,7.14,231.04,230.97,3.92325015]
[1759429410173,7.14,231.04,230.97,0.02885015]
[1759429411569,3.8936,231.03,230.97,0.02885015]
[1759429412378,3.8939,231.01,230.97,0.02885015]
[1759429412975,7.8,230.98,230.97,0.02885015]
[1759429415573,11.6944,230.98,230.97,0.02885015]
[1759429417475,7.8,230.98,230.97,0.02885015]
[1759429419283,3.8944,230.99,230.85,7.21820651]
[1759429419284,7.8,230.93,230.85,4.43]
[1759429419885,7.8,230.93,230.86,3.8964]
[1759429420779,0.0319551,230.92,230.86,3.8964]
[1759429422990,0.0319551,230.92,230.85,4.43]
[1759429424391,0.0319551,230.92,230.85,8.3266]
[1759429424790,11.6957,230.91,230.85,4.43]
[1759429424991,0.0319551,230.92,230.86,10.44820651]
[1759429425385,0.0319551,230.92,230.87,3.8961]
[1759429425591,0.0319551,230.92,230.88,7.66]
[1759429425794,0.0319551,230.92,230.87,3.8961]
[1759429425988,0.0319551,230.92,230.89,3.8958]
[1759429426293,0.0319551,230.92,230.91,7.66]
[1759429431195,7.8319551,230.92,230.88,11.556]
[1759429431396,0.0319551,230.92,230.89,7.66]
[1759429433201,0.0319551,230.92,230.88,3.896]
[1759429433400,0.0319551,230.92,230.89,7.66]
[1759429434202,0.0319551,230.92,230.88,3.896]
[1759429434801,0.0319551,230.92,230.89,7.66]
[1759429438105,0.0319551,230.92,230.86,7.66]
[1759429439402,0.0319551,230.92,230.87,60.6086]
[1759429439602,0.0319551,230.92,230.89,7.66]
[1759429440111,0.0319551,230.92,230.91,7.66]
[1759429441015,7.7857,231.08,230.91,7.66]
[1759429441016,3.12769933,231.04,230.94,7.66]
[1759429441212,7.8,231.06,230.96,7.66]
[1759429441409,3.12840898,231.05,230.96,7.66]
[1759429441607,10.53840898,231.04,230.92,7.7]
[1759429441808,7.41,231.02,230.92,7.7]
[1759429442212,3.8939,231.01,230.93,3.8951]
[1759429442513,3.8939,231.01,230.95,0.03058001]
[1759429443013,7.0234115,231.0,230.95,0.03058001]
[1759429443214,7.41,231.0,230.96,7.7]
[1759429444418,3.8934,231.04,230.96,9.48506714]
[1759429445504,3.8934,231.04,230.98,0.03238345]
[1759429450522,7.41,231.05,230.98,0.03238345]
[1759429451324,11.3033,231.05,230.98,0.03238345]
[1759429453227,3.12745015,231.04,230.98,0.03238345]
[1759429453428,11.3033,231.05,230.98,0.03238345]
[1759429453623,3.12745015,231.04,230.98,0.03238345]
[1759429453828,11.3033,231.05,230.98,0.03238345]
[1759429454624,7.41,231.03,230.98,0.03238345]
[1759429454827,7.41,231.04,230.98,0.03238345]
[1759429457230,7.41,231.04,230.98,3.92668345]
[1759429457430,3.12768554,231.07,231.01,7.7]
[1759429457635,11.3028,231.08,231.01,7.7]
[1759429457839,3.12758576,231.07,231.01,7.7]
[1759429458030,11.3028,231.08,231.01,7.7]
[1759429458229,7.41,231.08,231.03,1.78506714]
[1759429458433,7.41,231.08,231.04,7.7]
[1759429458630,107.56,231.12,231.03,1.78506714]
[1759429458631,3.12654407,231.11,231.06,1.78506714]
[1759429458832,7.41,231.1,231.06,9.48506714]
[1759429459232,3.12509003,231.13,231.07,11.5927]
[1759429459434,7.41,231.2,231.1,7.7]
[1759429459634,3.12465364,231.19,231.1,7.7]
[1759429459834,3.12465364,231.18,231.1,7.7]
[1759429460034,10.53465364,231.17,231.1,7.7]
[1759429460333,3.12465364,231.16,231.1,7.7]
[1759429460530,11.3013,231.17,231.12,0.03056006]
[1759429460731,7.41,231.15,231.12,0.03056006]
[1759429461533,3.8913,231.17,231.12,0.03056006]
[1759429462236,7.41,231.16,231.12,0.03056006]
[1759429462538,7.41,231.18,231.12,0.03056006]
[1759429462737,3.11890526,231.17,231.12,0.03056006]
[1759429462932,3.11890526,231.18,231.12,0.03056006]
[1759429463635,7.41,231.18,231.12,0.03056006]
[1759429465033,7.41,231.18,231.12,13.0575272]
[1759429466235,7.41,231.18,231.15,1.78506714]
[1759429469142,3.8905,231.21,231.12,9.1656272]
[1759429469344,7.37,231.2,231.12,9.1656272]
[1759429471537,7.37,231.2,231.12,13.0575272]
[1759429472644,7.37,231.2,231.12,7.38056006]
[1759429472845,7.4,231.22,231.15,1.78506714]
[1759429473442,7.4,231.22,231.16,7.31]
[1759429473940,7.4,231.22,231.16,0.02788304]
[1759429474140,314.98,231.26,231.16,0.02788304]
[1759429474141,7.4,231.2,231.16,0.02788304]
[1759429475247,7.4,231.17,231.16,0.02788304]
[1759429477750,7.4,231.23,231.16,0.02788304]
[1759429478649,7.4,231.21,231.16,0.02788304]
[1759429478846,3.8903,231.22,231.16,0.02788304]
[1759429479149,11.2903,231.22,231.16,0.02788304]
[1759429480548,3.8907,231.21,231.16,0.02788304]
[1759429481149,7.4,231.2,231.16,0.02788304]
[1759429481646,3.8907,231.21,231.16,0.02788304]
[1759429481852,7.4,231.2,231.16,0.02788304]
[1759429482151,1.78506714,231.24,231.16,7.33788304]
[1759429482152,7.4,231.22,231.16,7.33788304]
[1759429482850,7.4,231.22,231.16,0.02788304]
[1759429483648,11.2905,231.22,231.16,0.02788304]
[1759429485147,7.4,231.22,231.18,9.09506714]
[1759429485448,7.4,231.22,231.18,1.78506714]
[1759429485649,7.4,231.22,231.19,7.31]
[1759429485848,7.4,231.22,231.18,5.67596714]
[1759429486051,7.4,231.22,231.18,12.98596714]
[1759429487150,7.4,231.22,231.18,9.09506714]
[1759429487448,3.89,231.25,231.18,9.09506714]
[1759429487449,7.4,231.24,231.18,9.09506714]
[1759429487654,7.4,231.24,231.18,1.78506714]
[1759429488352,11.2901,231.24,231.18,1.78506714]
[1759429495958,3.8903,231.23,231.18,1.78506714]
[1759429496359,7.4,231.22,231.18,1.78506714]
[1759429496560,3.8903,231.23,231.18,1.78506714]
[1759429496860,11.2905,231.22,231.16,0.02788304]
[1759429499859,7.4,231.21,231.17,1.78506714]
[1759429500057,3.8905,231.22,231.17,1.78506714]
[1759429500255,7.4,231.21,231.17,1.78506714]
[1759429500655,3.8905,231.22,231.16,0.02788304]
[1759429500855,11.2905,231.22,231.16,0.02788304]
[1759429501166,7.4,231.22,231.16,3.91908304]
[1759429501464,7.62,231.26,231.18,1.78506714]
[1759429501766,11.5101,231.24,231.18,1.78506714]
[1759429501962,7.62,231.24,231.18,1.78506714]
[1759429502361,39.35304323,231.27,231.18,1.78506714]
[1759429502561,7.62,231.25,231.18,1.78506714]
[1759429502758,7.62,231.23,231.18,1.78506714]
[1759429502961,7.62,231.26,231.18,1.78506714]
[1759429503157,7.62,231.24,231.18,1.78506714]
[1759429503362,3.12329654,231.23,231.18,1.78506714]
[1759429503666,7.62,231.21,231.18,1.78506714]
[1759429503967,7.62,231.26,231.18,1.78506714]
[1759429504267,7.62,231.24,231.18,1.78506714]
[1759429504468,3.12555534,231.23,231.18,1.78506714]
[1759429504665,7.01605534,231.22,231.18,1.78506714]
[1759429504864,7.62,231.21,231.18,1.78506714]
[1759429505062,3.8905,231.22,231.18,1.78506714]
[1759429505268,7.62,231.21,231.18,1.78506714]
[1759429505968,7.62,231.26,231.18,1.78506714]
[1759429506162,7.62,231.24,231.18,1.78506714]
[1759429506458,7.62,231.22,231.16,0.02788304]
[1759429506968,3.12797809,231.21,231.16,0.02788304]
[1759429507170,7.62,231.22,231.16,0.02788304]
[1759429507468,3.12872462,231.21,231.16,0.02788304]
[1759429507666,7.62,231.26,231.16,0.02788304]
[1759429507864,7.62,231.24,231.16,0.02788304]
[1759429508065,3.12851439,231.23,231.17,3.891]
[1759429508267,7.62,231.21,231.17,15.741]
[1759429508660,7.62,231.21,231.18,7.42]
[1759429508861,3.8901,231.24,231.18,7.42]
[1759429509064,3.12908213,231.23,231.18,7.42]
[1759429509365,7.62,231.21,231.17,4.43]
[1759429509566,7.62,231.26,231.17,4.43]
[1759429509769,7.62,231.24,231.17,4.43]
[1759429509971,7.62,231.22,231.17,4.43]
[1759429510169,3.12978002,231.21,231.17,4.43]
[1759429510471,7.62,231.19,231.17,4.43]
[1759429511070,63.19824323,231.27,231.17,4.43]
[1759429511071,7.62,231.26,231.17,4.43]
[1759429511266,3.8902,231.23,231.17,4.43]
[1759429511470,10.75034046,231.22,231.18,7.42]
[1759429511672,7.62,231.21,231.18,7.42]
[1759429513476,3.8903,231.23,231.17,4.43]
[1759429513675,3.13082546,231.22,231.17,4.43]
[1759429513876,7.62,231.24,231.18,7.42]
[1759429514070,7.62,231.22,231.18,7.42]
[1759429514276,2.69304323,231.27,231.18,7.42]
[1759429514477,10.75094273,231.26,231.18,7.42]
[1759429514678,7.62,231.24,231.18,7.42]
[1759429514884,10.75094273,231.23,231.17,11.85]
[1759429515082,3.13094273,231.22,231.18,7.42]
[1759429515278,3.13094273,231.21,231.19,7.42]
[1759429515583,7.62,231.26,231.19,7.42]
[1759429515779,3.13130888,231.25,231.19,7.42]
[1759429515984,7.62,231.23,231.19,7.42]
[1759429516182,3.13130888,231.22,231.19,7.42]
[1759429516485,3.13130888,231.21,231.2,0.03240428]
[1759429516878,10.75130888,231.21,231.2,0.03240428]
[1759429517990,10.75156456,231.21,231.2,0.03240428]
[1759429518685,7.62,231.21,231.2,0.03240428]
[1759429518885,7.62,231.25,231.2,0.03240428]
[1759429519086,3.13164037,231.24,231.21,7.42]
[1759429519285,7.62,231.26,231.21,7.42]
[1759429519485,7.62,231.24,231.21,7.42]
[1759429519680,7.62,231.25,231.21,7.42]
[1759429519989,3.13137387,231.24,231.21,7.42]
[1759429520187,7.62,231.22,231.2,0.03240428]
[1759429520488,7.62,231.24,231.2,7.45240428]
[1759429520689,3.13186435,231.23,231.2,7.45240428]
[1759429520993,7.62,231.24,231.21,7.42]
[1759429521286,10.75186435,231.23,231.2,0.03240428]
[1759429521481,7.62,231.24,231.2,0.03240428]
[1759429521679,7.62,231.22,231.2,0.03240428]
[1759429521889,7.62,231.23,231.2,0.03240428]
[1759429522088,3.1329796,231.22,231.2,0.03240428]
[1759429522288,2.69304323,231.27,231.2,0.03240428]
[1759429522592,10.75293268,231.26,231.2,0.03240428]
[1759429522786,7.62,231.24,231.2,0.03240428]
[1759429523090,7.62,231.22,231.2,0.03240428]
[1759429523287,7.62,231.26,231.2,0.03240428]
[1759429523485,3.13312654,231.25,231.2,0.03240428]
[1759429523683,7.54,231.23,231.2,0.03240428]
[1759429523887,7.54,231.21,231.2,0.03240428]
[1759429524191,10.67330007,231.21,231.2,0.03240428]
[1759429525597,10.67354461,231.21,231.2,0.03240428]
[1759429536895,3.13354461,231.21,231.2,0.03240428]
[1759429537301,10.61354461,231.21,231.2,0.03240428]
[1759429542300,7.48,231.21,231.2,0.03240428]